[Event "Late-Titled-Tuesday-Blitz-June-04-2024"]
[Site "Chess.com"]
[Date "2024.06.04"]
[Round "9"]
[White "ChempionBg"]
[Black "Roedor"]
[Result "0-1"]
[WhiteElo "2247"]
[BlackElo "2370"]
[TimeControl "180+1"]
[EndTime "15:42:53 PDT"]
[Termination "Roedor won on time"]

1. d4 {[%clk 0:03:00.9]} 1... Nf6 {[%clk 0:02:59]} 2. c4 {[%clk 0:03:00.4]} 2...
c6 {[%clk 0:02:56.2]} 3. Nf3 {[%clk 0:02:59.8]} 3... d5 {[%clk 0:02:56.3]} 4. g3
{[%clk 0:03:00.2]} 4... g6 {[%clk 0:02:53.2]} 5. Bg2 {[%clk 0:03:00.6]} 5... Bg7
{[%clk 0:02:53.7]} 6. O-O {[%clk 0:02:59.2]} 6... O-O {[%clk 0:02:54]} 7. cxd5
{[%clk 0:02:59.4]} 7... cxd5 {[%clk 0:02:54.1]} 8. Ne5 {[%clk 0:02:59.5]} 8...
Nfd7 {[%clk 0:02:53.9]} 9. Bxd5 {[%clk 0:02:48.6]} 9... Nxe5 {[%clk 0:02:53.3]}
10. dxe5 {[%clk 0:02:48.7]} 10... Bxe5 {[%clk 0:02:53.5]} 11. Nc3 {[%clk
0:02:46.6]} 11... Nc6 {[%clk 0:02:51.2]} 12. Bh6 {[%clk 0:02:17]} 12... Bg7
{[%clk 0:02:32.6]} 13. Bxg7 {[%clk 0:01:38.2]} 13... Kxg7 {[%clk 0:02:33.5]} 14.
Rc1 {[%clk 0:01:30.4]} 14... Bh3 {[%clk 0:02:27.7]} 15. Bg2 {[%clk 0:01:30.2]}
15... Bxg2 {[%clk 0:02:21.9]} 16. Kxg2 {[%clk 0:01:29.4]} 16... Qa5 {[%clk
0:02:18.3]} 17. Qd5 {[%clk 0:01:27.1]} 17... Rfd8 {[%clk 0:02:11.9]} 18. Qxa5
{[%clk 0:01:25]} 18... Nxa5 {[%clk 0:02:12.8]} 19. Ne4 {[%clk 0:01:23.8]} 19...
Rd4 {[%clk 0:01:59.2]} 20. Kf3 {[%clk 0:01:19.8]} 20... Nc6 {[%clk 0:01:52.1]}
21. Nc5 {[%clk 0:01:11.2]} 21... Rb4 {[%clk 0:01:48.3]} 22. b3 {[%clk
0:00:58.1]} 22... Rd8 {[%clk 0:01:43.2]} 23. Rfd1 {[%clk 0:00:41.8]} 23... Rbd4
{[%clk 0:01:38.5]} 24. Rxd4 {[%clk 0:00:28.9]} 24... Nxd4+ {[%clk 0:01:39.4]}
25. Ke3 {[%clk 0:00:29.2]} 25... Nf5+ {[%clk 0:01:27.9]} 26. Kf3 {[%clk
0:00:28.1]} 26... b6 {[%clk 0:01:24.5]} 27. Ne4 {[%clk 0:00:20.2]} 27... Rd7
{[%clk 0:01:23]} 28. e3 {[%clk 0:00:18.8]} 28... e6 {[%clk 0:01:15.6]} 29. Rc2
{[%clk 0:00:17.3]} 29... Ne7 {[%clk 0:01:13]} 30. Ke2 {[%clk 0:00:15.7]} 30...
Nd5 {[%clk 0:01:07.8]} 31. a3 {[%clk 0:00:11.7]} 31... f5 {[%clk 0:01:06.9]} 32.
Nd2 {[%clk 0:00:05.7]} 32... Kf6 {[%clk 0:01:00.7]} 33. Nc4 {[%clk 0:00:05.6]}
33... g5 {[%clk 0:00:58.9]} 34. Rd2 {[%clk 0:00:05.2]} 34... Rc7 {[%clk
0:00:57.6]} 35. f4 {[%clk 0:00:03.6]} 35... g4 {[%clk 0:00:57.1]} 36. Ne5 {[%clk
0:00:02.4]} 36... Rc1 {[%clk 0:00:55.9]} 37. Nd7+ {[%clk 0:00:01.3]} 37... Ke7
{[%clk 0:00:55.7]} 38. Ne5 {[%clk 0:00:01.4]} 38... Nc3+ {[%clk 0:00:55.5]} 39.
Kd3 {[%clk 0:00:01]} 39... Ne4 {[%clk 0:00:52.3]} 40. Rc2 {[%clk 0:00:01.3]}
40... Rd1+ {[%clk 0:00:45.9]} 41. Ke2 {[%clk 0:00:01]} 41... Rh1 {[%clk
0:00:45.4]} 42. Kd3 {[%clk 0:00:01.2]} 42... Nc5+ {[%clk 0:00:45.8]} 43. Kc3
{[%clk 0:00:01.5]} 43... Ne4+ {[%clk 0:00:42.7]} 44. Kd3 {[%clk 0:00:01.8]}
44... Ra1 {[%clk 0:00:41.5]} 0-1

[Event "Late-Titled-Tuesday-Blitz-June-04-2024"]
[Site "Chess.com"]
[Date "2024.06.04"]
[Round "9"]
[White "Mikhail_Golubev"]
[Black "ManMish2"]
[Result "0-1"]
[WhiteElo "2513"]
[BlackElo "2651"]
[TimeControl "180+1"]
[EndTime "15:42:54 PDT"]
[Termination "ManMish2 won on time"]

1. e4 {[%clk 0:03:00.9]} 1... e5 {[%clk 0:02:59.4]} 2. Nf3 {[%clk 0:03:00.7]}
2... Nc6 {[%clk 0:03:00]} 3. Bc4 {[%clk 0:03:00.5]} 3... Nf6 {[%clk 0:02:59.3]}
4. d3 {[%clk 0:03:00.3]} 4... Bc5 {[%clk 0:02:59.4]} 5. c3 {[%clk 0:03:00.4]}
5... d6 {[%clk 0:02:59.5]} 6. Nbd2 {[%clk 0:02:59.6]} 6... a5 {[%clk 0:02:52]}
7. h3 {[%clk 0:02:55.8]} 7... O-O {[%clk 0:02:49.3]} 8. Nf1 {[%clk 0:02:53]}
8... Bb6 {[%clk 0:02:47.5]} 9. a4 {[%clk 0:02:45.1]} 9... d5 {[%clk 0:02:41.4]}
10. exd5 {[%clk 0:02:44.6]} 10... Nxd5 {[%clk 0:02:41.9]} 11. Ng3 {[%clk
0:02:44.4]} 11... Nf4 {[%clk 0:02:12.6]} 12. O-O {[%clk 0:02:40.6]} 12... Qf6
{[%clk 0:01:52.6]} 13. Ne4 {[%clk 0:01:59.1]} 13... Qg6 {[%clk 0:01:39.3]} 14.
Bxf4 {[%clk 0:01:54.5]} 14... exf4 {[%clk 0:01:36.1]} 15. Kh2 {[%clk 0:01:53.1]}
15... Qh5 {[%clk 0:01:24.6]} 16. d4 {[%clk 0:01:23.3]} 16... Bf5 {[%clk
0:01:20.9]} 17. Bd3 {[%clk 0:01:21.4]} 17... Rfe8 {[%clk 0:01:16.7]} 18. Re1
{[%clk 0:01:17.4]} 18... Rad8 {[%clk 0:01:10.2]} 19. Qc2 {[%clk 0:01:14.1]}
19... Bxh3 {[%clk 0:00:32]} 20. gxh3 {[%clk 0:01:13.7]} 20... Qxf3 {[%clk
0:00:31.9]} 21. Ng5 {[%clk 0:01:10.1]} 21... Qh5 {[%clk 0:00:31.1]} 22. Bxh7+
{[%clk 0:01:01.9]} 22... Kh8 {[%clk 0:00:26.7]} 23. Qf5 {[%clk 0:00:52.3]} 23...
Rf8 {[%clk 0:00:17]} 24. Rg1 {[%clk 0:00:30.4]} 24... Rd6 {[%clk 0:00:13.3]} 25.
Qxf4 {[%clk 0:00:23.6]} 25... Rf6 {[%clk 0:00:12.7]} 26. Qg3 {[%clk 0:00:22.2]}
26... Ne7 {[%clk 0:00:10.8]} 27. Bd3 {[%clk 0:00:17.8]} 27... Ng6 {[%clk
0:00:04.7]} 28. Nxf7+ {[%clk 0:00:07.4]} 28... R6xf7 {[%clk 0:00:04.4]} 29. Bxg6
{[%clk 0:00:06.5]} 29... Rxf2+ {[%clk 0:00:04.9]} 30. Rg2 {[%clk 0:00:01.7]}
30... Rxg2+ {[%clk 0:00:04.7]} 31. Qxg2 {[%clk 0:00:02]} 31... Qh6 {[%clk
0:00:05.2]} 0-1

[Event "Late-Titled-Tuesday-Blitz-June-04-2024"]
[Site "Chess.com"]
[Date "2024.06.04"]
[Round "9"]
[White "AustinThomas12345"]
[Black "chessdjw"]
[Result "0-1"]
[WhiteElo "2482"]
[BlackElo "2746"]
[TimeControl "180+1"]
[EndTime "15:42:54 PDT"]
[Termination "chessdjw won by checkmate"]

1. e4 {[%clk 0:03:00.9]} 1... e5 {[%clk 0:02:57.8]} 2. Nf3 {[%clk 0:03:01.2]}
2... Nc6 {[%clk 0:02:57.4]} 3. Bb5 {[%clk 0:03:01.3]} 3... a6 {[%clk 0:02:56.8]}
4. Bxc6 {[%clk 0:03:01.8]} 4... dxc6 {[%clk 0:02:56.3]} 5. O-O {[%clk
0:03:02.5]} 5... Bd6 {[%clk 0:02:53]} 6. d4 {[%clk 0:03:02.3]} 6... exd4 {[%clk
0:02:52.9]} 7. Qxd4 {[%clk 0:03:02.5]} 7... f6 {[%clk 0:02:53.5]} 8. Nc3 {[%clk
0:03:00]} 8... Ne7 {[%clk 0:02:48.5]} 9. Qc4 {[%clk 0:02:59.7]} 9... Ng6 {[%clk
0:02:46]} 10. Rd1 {[%clk 0:02:57.8]} 10... Qe7 {[%clk 0:02:45.8]} 11. Nd4 {[%clk
0:02:35.4]} 11... Ne5 {[%clk 0:02:45.1]} 12. Qe2 {[%clk 0:02:31.3]} 12... g6
{[%clk 0:02:28.9]} 13. Bh6 {[%clk 0:02:23.9]} 13... Ng4 {[%clk 0:02:19.1]} 14.
Qd2 {[%clk 0:01:42.3]} 14... Bxh2+ {[%clk 0:02:16.9]} 15. Kh1 {[%clk 0:01:42.6]}
15... Bd6 {[%clk 0:02:06.7]} 16. Nf3 {[%clk 0:01:39.3]} 16... Nxh6 {[%clk
0:01:55.5]} 17. Qxh6 {[%clk 0:01:38.3]} 17... Bg4 {[%clk 0:01:56]} 18. Qe3
{[%clk 0:01:34.1]} 18... O-O {[%clk 0:01:27.5]} 19. Rd3 {[%clk 0:01:12.5]} 19...
Rae8 {[%clk 0:01:19.4]} 20. Re1 {[%clk 0:01:08.2]} 20... Qf7 {[%clk 0:00:56.4]}
21. Qh6 {[%clk 0:01:06]} 21... Qg7 {[%clk 0:00:51.6]} 22. Qh4 {[%clk 0:01:06.2]}
22... h5 {[%clk 0:00:50.5]} 23. e5 {[%clk 0:01:03.8]} 23... fxe5 {[%clk
0:00:32.5]} 24. Ne4 {[%clk 0:01:01.1]} 24... Rf4 {[%clk 0:00:26.6]} 25. Qg5
{[%clk 0:00:47.6]} 25... Rf5 {[%clk 0:00:13.8]} 26. Qh4 {[%clk 0:00:47.6]} 26...
Ref8 {[%clk 0:00:10.5]} 27. Nxd6 {[%clk 0:00:44.4]} 27... cxd6 {[%clk
0:00:10.6]} 28. Rxd6 {[%clk 0:00:45.3]} 28... Bxf3 {[%clk 0:00:10.3]} 29. gxf3
{[%clk 0:00:45.4]} 29... Rxf3 {[%clk 0:00:10.3]} 30. Rg1 {[%clk 0:00:46.1]}
30... R3f6 {[%clk 0:00:09.8]} 31. Qc4+ {[%clk 0:00:45.3]} 31... Kh7 {[%clk
0:00:09.7]} 32. Qd3 {[%clk 0:00:34.8]} 32... Rxd6 {[%clk 0:00:07.2]} 33. Qxd6
{[%clk 0:00:35.7]} 33... Rxf2 {[%clk 0:00:06.9]} 34. Rg5 {[%clk 0:00:27.4]}
34... Qf7 {[%clk 0:00:06.3]} 35. Rg3 {[%clk 0:00:15.8]} 35... Rf1+ {[%clk
0:00:05.9]} 36. Kh2 {[%clk 0:00:16]} 36... Qf2+ {[%clk 0:00:05.9]} 37. Rg2
{[%clk 0:00:13.7]} 37... Qh4# {[%clk 0:00:05.8]} 0-1

[Event "Late-Titled-Tuesday-Blitz-June-04-2024"]
[Site "Chess.com"]
[Date "2024.06.04"]
[Round "9"]
[White "GMthekingindian"]
[Black "talaicito"]
[Result "0-1"]
[WhiteElo "2343"]
[BlackElo "2212"]
[TimeControl "180+1"]
[EndTime "15:42:54 PDT"]
[Termination "talaicito won by resignation"]

1. e4 {[%clk 0:03:00.9]} 1... c5 {[%clk 0:02:55.2]} 2. c3 {[%clk 0:03:00.6]}
2... d5 {[%clk 0:02:54]} 3. exd5 {[%clk 0:03:01.5]} 3... Qxd5 {[%clk 0:02:54.6]}
4. d4 {[%clk 0:03:02.1]} 4... Nf6 {[%clk 0:02:54.1]} 5. Nf3 {[%clk 0:03:02.5]}
5... e6 {[%clk 0:02:54.5]} 6. Be2 {[%clk 0:03:03]} 6... Be7 {[%clk 0:02:53.8]}
7. O-O {[%clk 0:03:02.8]} 7... O-O {[%clk 0:02:53.8]} 8. Be3 {[%clk 0:02:54.9]}
8... cxd4 {[%clk 0:02:53.9]} 9. Nxd4 {[%clk 0:02:53.1]} 9... e5 {[%clk
0:02:41.6]} 10. Nb5 {[%clk 0:02:48.4]} 10... Na6 {[%clk 0:02:33.8]} 11. c4
{[%clk 0:02:29.4]} 11... Qxd1 {[%clk 0:02:29.4]} 12. Rxd1 {[%clk 0:02:30.3]}
12... b6 {[%clk 0:02:29.5]} 13. N1c3 {[%clk 0:02:15.5]} 13... Bf5 {[%clk
0:02:06.9]} 14. Nd6 {[%clk 0:02:03.1]} 14... Bxd6 {[%clk 0:01:59.2]} 15. Rxd6
{[%clk 0:02:02.5]} 15... Rfd8 {[%clk 0:01:43.9]} 16. Rad1 {[%clk 0:02:00.6]}
16... Rxd6 {[%clk 0:01:41.3]} 17. Rxd6 {[%clk 0:02:01.5]} 17... Kf8 {[%clk
0:01:41.6]} 18. Bg5 {[%clk 0:01:46.8]} 18... Ke7 {[%clk 0:01:38]} 19. Nb5 {[%clk
0:01:33.9]} 19... Rb8 {[%clk 0:01:12.8]} 20. a3 {[%clk 0:00:30.6]} 20... Nc7
{[%clk 0:01:11.9]} 21. Bxf6+ {[%clk 0:00:27.8]} 21... gxf6 {[%clk 0:01:11.6]}
22. Rc6 {[%clk 0:00:21.4]} 22... Nxb5 {[%clk 0:01:10.9]} 23. cxb5 {[%clk
0:00:22.3]} 23... Rc8 {[%clk 0:01:07.6]} 24. g4 {[%clk 0:00:16.7]} 24... Rxc6
{[%clk 0:01:03.4]} 25. bxc6 {[%clk 0:00:17.6]} 25... Be4 {[%clk 0:01:03.6]} 26.
c7 {[%clk 0:00:17]} 26... Kd7 {[%clk 0:01:03.2]} 27. f3 {[%clk 0:00:14.4]} 27...
Bd5 {[%clk 0:01:02.4]} 28. Kf2 {[%clk 0:00:15.3]} 28... Kxc7 {[%clk 0:01:02.5]}
29. Ke3 {[%clk 0:00:16]} 29... Kd6 {[%clk 0:01:02.7]} 30. b4 {[%clk 0:00:16.4]}
30... h6 {[%clk 0:01:00.7]} 31. f4 {[%clk 0:00:16.7]} 31... Be6 {[%clk
0:00:58.4]} 32. h3 {[%clk 0:00:16.7]} 32... Kd5 {[%clk 0:00:53.6]} 33. Kd3
{[%clk 0:00:17]} 33... e4+ {[%clk 0:00:52.5]} 34. Ke3 {[%clk 0:00:17.3]} 34...
f5 {[%clk 0:00:52.8]} 35. Bd1 {[%clk 0:00:16.8]} 35... fxg4 {[%clk 0:00:49.2]}
36. hxg4 {[%clk 0:00:17.7]} 36... f5 {[%clk 0:00:48.3]} 37. g5 {[%clk
0:00:16.1]} 37... hxg5 {[%clk 0:00:48.3]} 38. fxg5 {[%clk 0:00:17]} 38... Ke5
{[%clk 0:00:48.3]} 39. g6 {[%clk 0:00:16.9]} 39... f4+ {[%clk 0:00:48.6]} 40.
Kf2 {[%clk 0:00:16.7]} 40... e3+ {[%clk 0:00:46.1]} 41. Kf3 {[%clk 0:00:16.4]}
41... Bd5+ {[%clk 0:00:40]} 42. Ke2 {[%clk 0:00:16.7]} 42... Kd4 {[%clk
0:00:31.1]} 43. Bc2 {[%clk 0:00:15.9]} 43... f3+ {[%clk 0:00:30.8]} 44. Kf1
{[%clk 0:00:16.4]} 44... Bc4+ {[%clk 0:00:30.1]} 45. Ke1 {[%clk 0:00:15.3]}
45... f2+ {[%clk 0:00:30.1]} 0-1

[Event "Late-Titled-Tuesday-Blitz-June-04-2024"]
[Site "Chess.com"]
[Date "2024.06.04"]
[Round "9"]
[White "K_A_S_T_O_R"]
[Black "BabageldiAnnaberdiyev"]
[Result "1/2-1/2"]
[WhiteElo "2862"]
[BlackElo "2634"]
[TimeControl "180+1"]
[EndTime "15:42:56 PDT"]
[Termination "Game drawn by repetition"]

1. e4 {[%clk 0:03:00.9]} 1... e6 {[%clk 0:03:00.9]} 2. d4 {[%clk 0:03:00.2]}
2... d5 {[%clk 0:03:01.4]} 3. Nc3 {[%clk 0:03:00.7]} 3... Nf6 {[%clk 0:03:00.8]}
4. e5 {[%clk 0:03:00.9]} 4... Nfd7 {[%clk 0:03:01.4]} 5. Nce2 {[%clk 0:03:01.4]}
5... c5 {[%clk 0:03:01.7]} 6. f4 {[%clk 0:03:00.9]} 6... Nc6 {[%clk 0:03:02.2]}
7. c3 {[%clk 0:03:01.2]} 7... Qb6 {[%clk 0:02:56]} 8. a3 {[%clk 0:02:59.6]} 8...
cxd4 {[%clk 0:02:53.8]} 9. cxd4 {[%clk 0:02:59]} 9... a5 {[%clk 0:02:50.1]} 10.
b3 {[%clk 0:02:54.4]} 10... Be7 {[%clk 0:02:45.9]} 11. Nf3 {[%clk 0:02:53.1]}
11... O-O {[%clk 0:02:46.3]} 12. Nc3 {[%clk 0:02:48.5]} 12... f6 {[%clk
0:02:44.9]} 13. Na4 {[%clk 0:02:30.8]} 13... Qa7 {[%clk 0:02:44.1]} 14. Bb2
{[%clk 0:02:30.9]} 14... fxe5 {[%clk 0:02:43.4]} 15. fxe5 {[%clk 0:02:28.9]}
15... Nb6 {[%clk 0:02:18.2]} 16. Nxb6 {[%clk 0:02:16.6]} 16... Qxb6 {[%clk
0:02:19.1]} 17. Qd3 {[%clk 0:02:16.7]} 17... Bd7 {[%clk 0:02:09.3]} 18. Be2
{[%clk 0:02:15.9]} 18... Na7 {[%clk 0:01:58.2]} 19. a4 {[%clk 0:02:13.3]} 19...
Bb4+ {[%clk 0:01:45.4]} 20. Kf2 {[%clk 0:02:11]} 20... Nc6 {[%clk 0:01:45.8]}
21. Kg3 {[%clk 0:02:10.1]} 21... Be7 {[%clk 0:01:41.9]} 22. h4 {[%clk
0:02:09.5]} 22... h6 {[%clk 0:01:28.8]} 23. Rhf1 {[%clk 0:01:59.3]} 23... Nb4
{[%clk 0:01:28.5]} 24. Qd2 {[%clk 0:01:59.1]} 24... Rac8 {[%clk 0:01:28]} 25.
Rac1 {[%clk 0:01:58.5]} 25... Rxc1 {[%clk 0:01:24.8]} 26. Rxc1 {[%clk
0:01:57.4]} 26... Rc8 {[%clk 0:01:25.2]} 27. Rxc8+ {[%clk 0:01:56.9]} 27... Bxc8
{[%clk 0:01:26.1]} 28. Qc3 {[%clk 0:01:50.7]} 28... Bd7 {[%clk 0:01:24.8]} 29.
Kf2 {[%clk 0:01:47.8]} 29... Qd8 {[%clk 0:01:19.5]} 30. g3 {[%clk 0:01:47.4]}
30... Bc6 {[%clk 0:01:12.1]} 31. Qc1 {[%clk 0:01:39.1]} 31... Qe8 {[%clk
0:01:11.7]} 32. Qb1 {[%clk 0:01:38.1]} 32... b5 {[%clk 0:01:04.5]} 33. axb5
{[%clk 0:01:31.7]} 33... Bxb5 {[%clk 0:01:05.4]} 34. Qd1 {[%clk 0:01:31]} 34...
Bxe2 {[%clk 0:00:57.2]} 35. Qxe2 {[%clk 0:01:30.9]} 35... Qg6 {[%clk 0:00:57.4]}
36. Bc3 {[%clk 0:01:29.8]} 36... Nd3+ {[%clk 0:00:45.3]} 37. Ke3 {[%clk
0:01:29.4]} 37... Nb4 {[%clk 0:00:44.7]} 38. Bxb4 {[%clk 0:01:27.8]} 38... Bxb4
{[%clk 0:00:45.6]} 39. Qb5 {[%clk 0:01:15.4]} 39... Qxg3 {[%clk 0:00:19.2]} 40.
Qe8+ {[%clk 0:01:12]} 40... Kh7 {[%clk 0:00:19.8]} 41. Qxe6 {[%clk 0:01:12.4]}
41... Bd2+ {[%clk 0:00:19.7]} 42. Kxd2 {[%clk 0:01:07.3]} 42... Qxf3 {[%clk
0:00:20.3]} 43. Qa6 {[%clk 0:00:58.9]} 43... Qf4+ {[%clk 0:00:20]} 44. Kc3
{[%clk 0:00:58]} 44... Qe3+ {[%clk 0:00:20]} 45. Qd3+ {[%clk 0:00:56.4]} 45...
Qxd3+ {[%clk 0:00:20.2]} 46. Kxd3 {[%clk 0:00:57]} 46... Kg6 {[%clk 0:00:19.4]}
47. Ke3 {[%clk 0:00:57.1]} 47... Kf5 {[%clk 0:00:19.9]} 48. Kf3 {[%clk
0:00:57.5]} 48... g6 {[%clk 0:00:20.4]} 49. Kg3 {[%clk 0:00:57.5]} 49... Ke6
{[%clk 0:00:20.8]} 50. Kf4 {[%clk 0:00:54.5]} 50... Ke7 {[%clk 0:00:20.9]} 51.
Kg4 {[%clk 0:00:50.2]} 51... Ke6 {[%clk 0:00:21.2]} 52. Kg3 {[%clk 0:00:50.2]}
52... Kf5 {[%clk 0:00:20.5]} 53. Kf3 {[%clk 0:00:47.9]} 53... Ke6 {[%clk
0:00:21]} 54. Kf4 {[%clk 0:00:47.7]} 54... Ke7 {[%clk 0:00:21.3]} 55. Kg4 {[%clk
0:00:48]} 55... Ke6 {[%clk 0:00:21.6]} 56. Kg3 {[%clk 0:00:48.9]} 56... Kf5
{[%clk 0:00:21.9]} 57. Kf3 {[%clk 0:00:49.2]} 57... Ke6 {[%clk 0:00:22.5]} 58.
Kg4 {[%clk 0:00:49.7]} 58... Ke7 {[%clk 0:00:22.5]} 59. Kg3 {[%clk 0:00:49.9]}
59... Ke6 {[%clk 0:00:22.8]} 60. Kf4 {[%clk 0:00:50.1]} 1/2-1/2

[Event "Late-Titled-Tuesday-Blitz-June-04-2024"]
[Site "Chess.com"]
[Date "2024.06.04"]
[Round "9"]
[White "th3d4rkness"]
[Black "Bala-Afiada"]
[Result "0-1"]
[WhiteElo "2160"]
[BlackElo "2076"]
[TimeControl "180+1"]
[EndTime "15:42:59 PDT"]
[Termination "Bala-Afiada won on time"]

1. e4 {[%clk 0:03:00.9]} 1... c5 {[%clk 0:02:50.2]} 2. Nc3 {[%clk 0:03:00]} 2...
Nc6 {[%clk 0:02:49.9]} 3. Bb5 {[%clk 0:02:58]} 3... d6 {[%clk 0:02:49]} 4. Bxc6+
{[%clk 0:02:56.4]} 4... bxc6 {[%clk 0:02:49.9]} 5. f4 {[%clk 0:02:52.9]} 5... g6
{[%clk 0:02:27.7]} 6. Nf3 {[%clk 0:02:52.5]} 6... Bg7 {[%clk 0:02:26.8]} 7. O-O
{[%clk 0:02:52.1]} 7... Nf6 {[%clk 0:02:18]} 8. d3 {[%clk 0:02:49.5]} 8... Bg4
{[%clk 0:02:15.3]} 9. Qe1 {[%clk 0:02:48.9]} 9... O-O {[%clk 0:02:12.2]} 10. Qh4
{[%clk 0:02:47.1]} 10... Bxf3 {[%clk 0:02:09.5]} 11. Rxf3 {[%clk 0:02:46.2]}
11... Rb8 {[%clk 0:02:06]} 12. Rh3 {[%clk 0:02:40.4]} 12... h6 {[%clk
0:02:00.5]} 13. f5 {[%clk 0:02:36.5]} 13... g5 {[%clk 0:01:58.2]} 14. Bxg5
{[%clk 0:02:32.2]} 14... hxg5 {[%clk 0:01:58.1]} 15. Qxg5 {[%clk 0:02:32.2]}
15... e6 {[%clk 0:01:43.6]} 16. b3 {[%clk 0:02:13.2]} 16... Nh7 {[%clk
0:01:30.2]} 17. Qh5 {[%clk 0:02:10.6]} 17... Nf6 {[%clk 0:01:25.5]} 18. Qh4
{[%clk 0:02:07.2]} 18... d5 {[%clk 0:01:21.9]} 19. Rf1 {[%clk 0:02:02.7]} 19...
dxe4 {[%clk 0:01:19.6]} 20. Nxe4 {[%clk 0:02:00.8]} 20... Qd4+ {[%clk
0:01:13.4]} 21. Kh1 {[%clk 0:01:59.4]} 21... Rfe8 {[%clk 0:00:51]} 22. c3 {[%clk
0:00:53.8]} 22... Qe5 {[%clk 0:00:39.1]} 23. Nxf6+ {[%clk 0:00:19.6]} 23... Qxf6
{[%clk 0:00:35.9]} 24. Qh7+ {[%clk 0:00:15.6]} 24... Kf8 {[%clk 0:00:35.3]} 25.
Rg3 {[%clk 0:00:15]} 25... exf5 {[%clk 0:00:30.2]} 26. h3 {[%clk 0:00:13.9]}
26... Rbd8 {[%clk 0:00:27.3]} 27. Rxf5 {[%clk 0:00:13.1]} 27... Re1+ {[%clk
0:00:21]} 28. Kh2 {[%clk 0:00:13]} 28... Qxc3 {[%clk 0:00:17.3]} 29. Qh5 {[%clk
0:00:10.3]} 29... Rd7 {[%clk 0:00:08.7]} 30. Rxc5 {[%clk 0:00:09]} 30... Qf6
{[%clk 0:00:05.5]} 31. Rf5 {[%clk 0:00:07.4]} 31... Qd6 {[%clk 0:00:03.5]} 32.
Rg5 {[%clk 0:00:05.6]} 32... Qd4 {[%clk 0:00:02.2]} 0-1

[Event "Late-Titled-Tuesday-Blitz-June-04-2024"]
[Site "Chess.com"]
[Date "2024.06.04"]
[Round "9"]
[White "crazy_but_lazy"]
[Black "dretch"]
[Result "0-1"]
[WhiteElo "2662"]
[BlackElo "2864"]
[TimeControl "180+1"]
[EndTime "15:43:05 PDT"]
[Termination "dretch won on time"]

1. e4 {[%clk 0:03:00.9]} 1... e6 {[%clk 0:02:59.5]} 2. d4 {[%clk 0:03:00.1]}
2... d5 {[%clk 0:03:00]} 3. e5 {[%clk 0:02:57]} 3... c5 {[%clk 0:03:00.5]} 4. c3
{[%clk 0:02:57.2]} 4... Nc6 {[%clk 0:02:58.7]} 5. Nf3 {[%clk 0:02:57.4]} 5...
Bd7 {[%clk 0:02:59.1]} 6. Be2 {[%clk 0:02:57.2]} 6... Nge7 {[%clk 0:02:54.4]} 7.
Na3 {[%clk 0:02:52.8]} 7... Nf5 {[%clk 0:02:50.2]} 8. Nc2 {[%clk 0:02:52.6]}
8... cxd4 {[%clk 0:02:41.8]} 9. cxd4 {[%clk 0:02:53.5]} 9... Qb6 {[%clk
0:02:33.8]} 10. a3 {[%clk 0:02:34.9]} 10... Na5 {[%clk 0:02:26.7]} 11. O-O
{[%clk 0:01:55.7]} 11... Ba4 {[%clk 0:02:18.7]} 12. Bd3 {[%clk 0:01:46.9]} 12...
Rc8 {[%clk 0:02:16.6]} 13. Qe2 {[%clk 0:01:36]} 13... Be7 {[%clk 0:01:45.1]} 14.
g4 {[%clk 0:01:17.3]} 14... Nh4 {[%clk 0:01:00.3]} 15. Nxh4 {[%clk 0:01:17.2]}
15... Bxh4 {[%clk 0:01:01.2]} 16. Be3 {[%clk 0:01:14.7]} 16... Be7 {[%clk
0:00:46.7]} 17. Rab1 {[%clk 0:01:06.7]} 17... Qb3 {[%clk 0:00:38.6]} 18. Na1
{[%clk 0:00:52.7]} 18... Qb6 {[%clk 0:00:28.5]} 19. f4 {[%clk 0:00:35.2]} 19...
Nc4 {[%clk 0:00:24.8]} 20. Bf2 {[%clk 0:00:31.4]} 20... Bd7 {[%clk 0:00:19.3]}
21. Nc2 {[%clk 0:00:26.6]} 21... g6 {[%clk 0:00:15.3]} 22. Kh1 {[%clk
0:00:17.6]} 22... h5 {[%clk 0:00:15.1]} 23. f5 {[%clk 0:00:17.6]} 23... exf5
{[%clk 0:00:15.2]} 24. gxf5 {[%clk 0:00:18.5]} 24... gxf5 {[%clk 0:00:13.9]} 25.
Ne3 {[%clk 0:00:13]} 25... Nxe3 {[%clk 0:00:11.9]} 26. Bxe3 {[%clk 0:00:13.3]}
26... Qg6 {[%clk 0:00:11.4]} 27. Rg1 {[%clk 0:00:12.8]} 27... Qb6 {[%clk
0:00:08.1]} 28. Rbf1 {[%clk 0:00:11.8]} 28... Be6 {[%clk 0:00:06.5]} 29. Bxf5
{[%clk 0:00:10.9]} 29... h4 {[%clk 0:00:05.6]} 30. Rf2 {[%clk 0:00:07.6]} 30...
Kd7 {[%clk 0:00:05.6]} 31. Bd3 {[%clk 0:00:06.7]} 31... a6 {[%clk 0:00:04.7]}
32. b4 {[%clk 0:00:06.3]} 32... Rc3 {[%clk 0:00:03.2]} 33. Bf5 {[%clk
0:00:01.9]} 33... h3 {[%clk 0:00:02.9]} 34. Rg7 {[%clk 0:00:01.9]} 34... Kd8
{[%clk 0:00:01.6]} 35. Bg5 {[%clk 0:00:01.3]} 35... Qb5 {[%clk 0:00:01.5]} 36.
Bxe7+ {[%clk 0:00:01.1]} 36... Kxe7 {[%clk 0:00:02]} 0-1